Cogmind - Beta 15 @@@ ROGUE MODE // 2025.10.18 @ 20:35:12 Player: aliser Result: Destroyed by D-53 Grenadier with Mini Grenade Launcher Performance ------------- Evolutions (0) 0 Regions Visited (2) 400 Robots Destroyed (14) 70 Value Destroyed (340) 340 Prototype IDs (0) 0 Alien Tech Used (0) 0 Bonus (0) 0 TOTAL SCORE: 810 Bonus ------- None Cogmind --------- Core Integrity 0/250 Matter 224/300 Energy 265/265 System Corruption 0% Temperature Cool (0) Movement Core (300) Ox5 Location -10/Mines Parts ------- > --- POWER (1) -------- Improved Ion Engine > --- PROPULSION (2) --- (None) > --- UTILITY (2) ------ Small Storage Unit Improved Targeting Computer > --- WEAPON (2) ------- Assault Rifle Light Cannon > --- INVENTORY (8) ---- Ion Engine Light Ion Engine Improved Ion Engine Improved Ion Engine Huge Storage Unit Visual Processing Unit Improved Targeting Computer Mining Laser Peak State ------------ > --- POWER ------------ Improved Ion Engine > --- PROPULSION ------- Light Treads Light Treads > --- UTILITY ---------- Small Storage Unit Improved Terrain Scanner > --- WEAPON ----------- EM Pulse Gun EM Pulse Gun > --- INVENTORY -------- Ion Engine Light Ion Engine Improved Ion Engine Improved Ion Engine Improved Targeting Computer Assault Rifle Mining Laser [Rating: 11] Favorites ----------- Power Improved Ion Engine Engine Improved Ion Engine Propulsion Light Treads Treads Light Treads Utility Small Storage Unit Device Improved Terrain Scanner Storage Small Storage Unit Processor Improved Targeting Computer Weapon Assault Rifle Energy Gun EM Pulse Gun Ballistic Gun Assault Rifle Ballistic Cannon Light Cannon Special Weapon Mining Laser Build | -11 -10 -10 ------- Run | Yrd Mat Min Slots Evolved . | . . . Power . | . . . Propulsion . | . . . Utility . | . . . Weapon . | . . . Parts Attached 13 | 7 5 1 Power 2 | 1 1 . Engine 2 | 1 1 . Core . | . . . Reactor . | . . . Propulsion 3 | 2 . 1 Treads 3 | 2 . 1 Leg . | . . . Wheel . | . . . Hover . | . . . Flight . | . . . Utility 3 | 2 1 . Device 1 | 1 . . Storage 1 | 1 . . Processor 1 | . 1 . Hackware . | . . . Protection . | . . . Artifact . | . . . Weapon 5 | 2 3 . Energy Gun 2 | 2 . . Energy Cannon . | . . . Ballistic Gun 1 | . 1 . Ballistic Cannon 1 | . 1 . Launcher . | . . . Special Weapon 1 | . 1 . Impact Weapon . | . . . Slashing Weapon . | . . . Piercing Weapon . | . . . Special Melee Weapon . | . . . Unidentified Prototypes . | . . . Parts Lost 4 | . 2 2 Power . | . . . Propulsion 2 | . . 2 Utility 1 | . 1 . Weapon 1 | . 1 . Highest Loss Streak 2 | . 2 2 To Critical Strikes . | . . . Average Backups 6 | 2 6 8 Power 3 | . 3 4 Propulsion . | . . . Utility 2 | . 1 3 Weapon 1 | 1 1 1 Tool/Special . | . . . Unused Backups 6 | . . 6 Power 3 | . . 3 Propulsion . | . . . Utility 3 | . . 3 Weapon . | . . . Tool/Special . | . . . Average Slot Usage (%) 99 | . 99 100 Engine 14 | . 14 14 Treads 28 | . 28 28 Device 2 | . 5 . Storage 14 | . 14 14 Processor 11 | . 7 14 Energy Gun 5 | . 14 . Ballistic Gun 12 | . 9 14 Ballistic Cannon 8 | . . 14 Special Weapon 1 | . 3 . Peak Build Rating 11 | 9 11 10 Average Rating 9 | 5 9 9 On Entrance 6 | . 9 10 Naked Turns . | . . . Heaviest Build 17 | 15 17 17 Greatest Support 40 | 40 40 40 Greatest Overweight (x) . | . . . Average Overweight (x) . | . . . Largest Inventory Capacity 8 | 8 8 8 Average Capacity 7 | 7 8 8 Most Carried 8 | 4 8 8 Average Carried 6 | 2 6 8 Final Capacity 8 | 8 8 8 Final Carried 8 | 3 8 8 Class Distribution -------------------- 100% | Mutant Dominant Class ---------------- Mutant | -10/Materials Mutant | -10/Mines Resources | -11 -10 -10 ----------- Run | Yrd Mat Min Matter Collected 413 | 192 126 95 Remotely . | . . . Salvage Created 520 | 117 225 178 Parts 21 | 9 5 7 Haulers Intercepted . | . . . Recyclers Shooed . | . . . Parts Field Recycled . | . . . Retrieved Matter . | . . . Parts Self-Destructed . | . . . Prevented . | . . . Kills | -11 -10 -10 ------- Run | Yrd Mat Min Combat Hostiles Destroyed 9 | . 2 7 Guns 3 | . 2 1 Cannons 6 | . . 6 Classes Destroyed 7 | 3 2 2 Worker 2 | 1 1 . Tunneler 2 | 2 . . Recycler 2 | 1 1 . Watcher 1 | . 1 . Grunt 6 | . 2 4 Demolisher 1 | . . 1 Assembled 2 | . . 2 Best Kill Streak 3 | 2 3 2 Combat Bots Only 2 | . 1 2 Max Kills in Single Turn 1 | 1 1 1 Gunslinging . | . . . Exploded . | . . . Melee . | . . . Uniques/NPCs Destroyed . | . . . Combat | -11 -10 -10 -------- Run | Yrd Mat Min Hostile Shots Fired 71 | . 27 44 Missed 18 | . 7 11 Hits 53 | . 20 33 Projectile 53 | . 20 33 AOE 11 | . . 11 Damage Taken 934 | . 276 658 Core 254 | . 42 212 Absorbed by Shields . | . . . Core Remaining (%) 100 | 100 . . Volleys Fired 45 | 5 17 23 Largest 2 | 2 2 2 Hottest 80 | 80 80 50 Shots Fired 89 | 10 33 46 Gun 66 | 10 33 23 Cannon 23 | . . 23 Launcher . | . . . Special . | . . . Kinetic 52 | . 6 46 Thermal . | . . . Explosive . | . . . Electromagnetic 37 | 10 27 . Robot Hit Streak 7 | 3 4 7 Robot Miss Streak 5 | 1 5 4 Penetration Max . | . . . Secondary Targets 1 | . 1 . Max Gunslinging Chain 1 | . 1 . Shots Hit Robots 48 | 5 16 27 Core Hits 24 | 4 8 12 Critical Kills . | . . . Critical Parts Destroyed . | . . . Critical Strikes . | . . . Melee Attacks . | . . . Impact . | . . . Slashing . | . . . Piercing . | . . . Sneak Attacks . | . . . Combat Hostiles . | . . . Follow-up Attacks . | . . . Damage Inflicted 801 | 97 298 406 Guns 497 | 65 240 192 Cannons 214 | . . 214 Explosions 90 | 32 58 . Melee . | . . . Ramming . | . . . Kinetic 447 | . 41 406 Thermal 90 | 32 58 . Explosive . | . . . Electromagnetic 264 | 65 199 . Impact . | . . . Slashing . | . . . Piercing . | . . . Highest Corruption . | . . . Average Corruption . | . . . Corruption Purged . | . . . Corruption Blocked . | . . . Overload Shots . | . . . Overflow Damage . | . . . Projectiles . | . . . Explosions . | . . . Melee . | . . . Knockbacks 3 | . . 3 Impact . | . . . Kinetic 2 | . . 2 Secondary 1 | . . 1 Self-Inflicted Damage . | . . . Shots . | . . . Rammed . | . . . Targets Rammed . | . . . Kicked . | . . . Crushed . | . . . Highest Temperature 317 | 36 317 12 Average Temperature 127 | 15 175 5 Received Heat Transfer 246 | . 162 84 Effects 1 | . 1 . Energy Bleed 1 | . 1 . Siege Activations . | . . . Martial Activations . | . . . Shielding Activations . | . . . Robots Disrupted . | . . . Combat Hostiles . | . . . Robots Corrupted . | . . . Combat Hostiles . | . . . Parts Fried 1 | . 1 . Impact Corruptions . | . . . Robots Melted . | . . . Combat Hostiles . | . . . Parts Melted . | . . . Heat Transferred 100 | . 100 . Parts Sabotaged . | . . . Parts Stolen . | . . . Parts Stripped . | . . . Power Chain Reactions 2 | 1 1 . Alert | -11 -10 -10 ------- Run | Yrd Mat Min Maximum Alert Level . | . . . Low Security (%) 100 | 100 100 100 Level 1 . | . . . Level 2 . | . . . Level 3 . | . . . Level 4 . | . . . Level 5 . | . . . High Security . | . . . Max Security . | . . . Peak Influence 50 | 10 32 50 Initial 3 | . 3 . Average 8 | 2 6 10 Influence Increases 262 | 20 97 145 Destroy 0b10 Robot/C 140 | . 40 100 Destroy 0b10 Robot/NC 35 | 20 15 . Destroy Leader 42 | . 12 30 Successful Hack 13 | . 13 . Destroy Structure 2 | . 2 . Lose Combat Pursuer 30 | . 15 15 Influence Decreases 242 | 15 102 125 Entered New Map 2 | . 2 . Time Decay 200 | 15 80 105 Lost Part 40 | . 20 20 Squads Dispatched 1 | . 1 . Investigation 1 | . 1 . Extermination . | . . . Reinforcement . | . . . Assault . | . . . Garrison . | . . . Intercept . | . . . Searches Triggered . | . . . Construction Impeded . | . . . Haulers Reinforced . | . . . Active Scanning Responses . | . . . Cargo Convoy Interrupts . | . . . Stealth | -11 -10 -10 --------- Run | Yrd Mat Min Distress Signals 1 | . 1 . Communications Jammed . | . . . Distress Signals . | . . . Times Spotted 19 | . 5 14 Peak Tracking Total 16 | . 3 16 Tactical Retreats 4 | . 1 3 Traps | -11 -10 -10 ------- Run | Yrd Mat Min Traps Triggered . | . . . Indirectly . | . . . Trap Hack Attempts . | . . . Triggered . | . . . Disarmed . | . . . Reprogrammed . | . . . Reused . | . . . Traps Extracted . | . . . Installed . | . . . Triggered . | . . . Machines | -11 -10 -10 ---------- Run | Yrd Mat Min Machines Disabled . | . . . Max in Single Turn . | . . . Machines Repaired . | . . . Machines Dismantled . | . . . Machines Sabotaged . | . . . Overloaded Fab Kills . | . . . Hacking | -11 -10 -10 --------- Run | Yrd Mat Min Machines Accessed 4 | . 4 . Terminals 3 | . 3 . Fabricators . | . . . Repair Stations . | . . . Recycling Units 1 | . 1 . Scanalyzers . | . . . Garrison Access . | . . . Total Hacks 10 | . 10 . Successful 5 | . 5 . Failed 5 | . 5 . Catastrophic . | . . . Database Lockouts . | . . . Manual 4 | . 4 . Terminals 7 | . 7 . Fabricators . | . . . Repair Stations . | . . . Recycling Units 3 | . 3 . Scanalyzers . | . . . Garrison Access . | . . . Terminal Hacks 4 | . 4 . Robot Analysis 1 | . 1 . Branch Access Points 1 | . 1 . Terminal Index 1 | . 1 . Locate Traps 1 | . 1 . Fabricator Hacks . | . . . Repair Station Hacks . | . . . Recycling Unit Hacks 1 | . 1 . Retrieve Components 1 | . 1 . Scanalyzer . | . . . Garrison Access Hacks . | . . . Unauthorized Hacks . | . . . Terminals . | . . . Fabricators . | . . . Repair Stations . | . . . Recycling Units . | . . . Scanalyzers . | . . . Garrison Access . | . . . Data Cores Recovered . | . . . Used . | . . . Hacking Detections 4 | . 4 . Full Trace Events 1 | . 1 . Feedback Events . | . . . Feedback Blocked . | . . . Robot Schematics Acquired . | . . . Robots Built . | . . . Authchips . | . . . Time . | . . . Total Robot Build Rating . | . . . Part Schematics Acquired . | . . . Parts Built . | . . . Authchips . | . . . Time . | . . . Total Part Build Rating . | . . . Parts Repaired . | . . . Time . | . . . Parts Recycled . | . . . Recycled Matter . | . . . Retrieved Matter . | . . . Retrieved Components 3 | . 3 . Parts Scanalyzed . | . . . Part Schematics Acquired . | . . . Parts Damaged . | . . . Bothacking | -11 -10 -10 ------------ Run | Yrd Mat Min Used RIF Installer . | . . . Robots Hacked . | . . . Non-combat . | . . . Combat . | . . . Robot Hacks Applied . | . . . Relay Couplers Released . | . . . Fabnet Peak Effective % . | . . . Robots Rewired . | . . . Allies Hacked . | . . . Hacks Repelled . | . . . Allies | -11 -10 -10 -------- Run | Yrd Mat Min Total Allies . | . . . Largest Group . | . . . Highest-Rated Group . | . . . Highest-Rated Ally . | . . . Total Orders . | . . . Ally Attacks . | . . . Total Damage . | . . . Kills . | . . . Allies Corrupted . | . . . Allies Melted . | . . . Intel | -11 -10 -10 ------- Run | Yrd Mat Min Active Infowar (turns) 138 | 35 103 . Terrain 138 | 35 103 . Robot Analysis Total 1 | . 1 . Derelict Logs Recovered 1 | . . 1 Drone Launches . | . . . Drone Recoveries . | . . . Exploration | -11 -10 -10 ------------- Run | Yrd Mat Min Turns Passed 928 | 106 312 510 Spaces Moved 464 | 51 138 275 Core 4 | 4 . . Treads 460 | 47 138 275 Legs . | . . . Wheels . | . . . Hover . | . . . Flight . | . . . Fastest Speed 50 | 50 160 160 Average Speed 159 | 151 160 160 Slowest Speed 160 | 160 160 160 Overloaded Moves . | . . . Propulsion Burnouts . | . . . Robots Hopped . | . . . Potential Cave-ins . | . . . Cave-ins Triggered . | . . . Exploration Rate (%) 26 | 4 23 52 Regions Visited 2 Branch Regions 1 Pre-discovered Areas . | . . . Known Exits Taken 1 | . 1 . Unknown Exits Taken 1 | 1 . . Scrap Searched . | . . . Spaces Dug . | . . . Terrain Destroyed 6 | 4 2 . Melee . | . . . Projectile . | . . . AOE 6 | 4 2 . Terrain Rammed . | . . . Walls Destroyed . | . . . Machines Disabled . | . . . Actions | -11 -10 -10 --------- Run | Yrd Mat Min Total 562 | 67 195 300 Wait 29 | . 29 . Move 462 | 50 137 275 Hop . | . . . Pick Up 10 | 5 5 . Fast Attach 7 | 5 2 . Attach 3 | 2 1 . Detach 1 | . 1 . Swap 3 | . 2 1 Drop 2 | . 1 1 Fire 45 | 5 17 23 Melee . | . . . Ram . | . . . Kick . | . . . Crush . | . . . Escape Stasis . | . . . Rewire . | . . . Trap . | . . . Miscellaneous . | . . . Route ------- -11/Scrapyard -10/Materials (discovered 2 exits: *Min x2) -10/Mines History --------- Turn | Location | Event 7 | -11/Scrapyard | Discovered new exit (range 14) 107 | -11/Scrapyard | Entered Materials 310 | -10/Materials | Build established: Mutant 401 | -10/Materials | Discovered new exit (range 12) 403 | -10/Materials | Identified exit to Mines 419 | -10/Materials | Entered Mines 841 | -10/Mines | Assembled infested the area 915 | -10/Mines | Core integrity fell below 50% 922 | -10/Mines | Core integrity fell below 20% 929 | -10/Mines | Destroyed by D-53 Grenadier with Mini Grenade Launcher Last Messages --------------- 00888_ as-08348 destroyed. 00891_ Acquired 8 matter. 00892_ K-01 Serf collects debris. 00893_ Acquired 3 matter. 00894_ Acquired 4 matter. 00898_ K-01 Serf collects debris. 00905_ Dropped Lgt. Treads. 00908_ K-01 Serf collects debris. 00909_ as-54232 destroyed. 00909_ as-62945 destroyed. 00909_ as-05071 destroyed. 00912_ D-53 Grenadier destroyed. 00913_ The unstable cave ceiling collapses. 00921_ Lgt. Treads destroyed. 00924_ The unstable cave ceiling collapses. 00925_ Lgt. Treads destroyed. 00926_ The unstable cave ceiling collapses. 00927_ T-07 Excavator destroyed. 00928_ The unstable cave ceiling collapses. [Achievement: Back For More] Map ----- +----------------------------------------------------+ | ?????????????????????????????????## #??????????? | | ??????????????????????????????????# ???????????? | | ??????????????????????????????????# ???????????? | | ??????????????????????????????????# ???????????? | | ??????????????????????????????????#????????????? | | ???????????????????????????????????????????????? | | ???????????????????????????????????????????????? | | ???????????????????????????????????????????????? | | ???????????????????????????????????????????????? | | ???????????????????????????????????????????????? | | ????????????????????????????????????#??????????? | | ??????????????????????????????????? #?????????## | | ????????????????????????????????### #????????## | | ????????????????????????????????# ?????????# | | ????????????##??????????????????# #?????????## | | ???????????? ?????????????????# #??######## | | ????????????? ?????????????#### #??# | | ?????????????? ???????????## # #### #???# | | ??????????????? ????????### % #???# | | ???????????????? ?????### %* #???# | | ????????????????? ?#### ! # ###???## | | ?????????????????? ## ##!#?????## | | ???????????????????# ## ####### | | ??????????????????## # = | | ??????????????????# # # | | ??????????????????# @ %% | | ???????????????# d % #### | | ?????????? = #% % %##?#### | | ????????? < % % ##???# | | ????????? #???# | | ?????????? ## ### ! ### #???# | | ?????????? ???#???## ###?# ## ##???# | | ????????????????????##????#%=% ##### ##????# | | ?????????????????????????# =%* #??# ##?????# | | ???????????????????????? #??####??????### | | ??????????????????????? = ##??????????????? | | ?????????????????????? #####???????????????? | | ????????????????????? #????????????????????? | | ????????????????????? #?????????????????????? | | ????????????????????? ??????????????????????? | | ????????????????????? ???????????????????????? | | ???????????????????????????????????????????????? | | ???????????????????????????????????????????????? | | ???????????????????????????????????????????????? | | ???????????????????????????????????????????????# | | ???????????????????????????????????????????????# | | ???????????????????????????????????????????????# | | ???????????????????????????????????????????????? | | ???????????????????????????????????????????????? | | ???????????????????????????????????????????????? | +----------------------------------------------------+ Best States ------------- Heat Dissipation 25 Energy Generation 12 Energy Capacity 265 Matter Stores 300 Matter Capacity 300 Sight Range 16 Terrain Scan Range 16 Terrain Scan Density 10 Evasion (%) 40 Targeting Accuracy 6 Recoil Reduction 2 Item Schematics ----------------- None Robot Schematics ------------------ None Fabricated ------------ Nothing Repaired ---------- Nothing Alien Tech Used ----------------- None Achievements -------------- Back For More Challenges ------------ None Game ------ Seed HardenedFrostCharge Manual? 0 Play Time 00:09:22 Cumulative 57.3 hours Start 2025.10.18 @ 20:27:09 End 2025.10.18 @ 20:35:12 Sessions 1 Manual Loads 0 Difficulty Rogue Special Mode None Game No. 50 Rogue 50 Adventurer 0 Explorer 0 Win Type - Total 0 Types 0/0/0/0/0/0/0/0/0/0 Lore% 28 Gallery% 40 Achievement% 35 Wizard Run 0 Options --------- Layout 0 ASCII 0 Keyboard 0 Movement Mouse Keybinds 0 Fullscreen 1 Font 36/Smallcaps Map View 76x50 Zoom Use 0% Tactical HUD 1 Map Filters NONE Filters NONE Steam 1 RUN: d3376127-69df-407a-b195-0bd8d36613ee